bitfinex/quotes_ETHUSD_20250616
["timestamp","ask_amount","ask_price","bid_price","bid_amount"]
[1750063597514,0.1896,2630.3,2630.2,3.80199224]
[1750063597716,0.1896,2630.3,2630.2,10.03999224]
[1750063598449,0.1896,2630.3,2630.2,6.238]
[1750063598755,8.19486133,2630.3,2630.2,6.238]
[1750063598942,8.14733634,2630.3,2630.2,6.238]
[1750063599134,8.14733634,2630.3,2630.1,3.82208202]
[1750063599350,8.14733634,2630.3,2630.2,6.238]
[1750063600054,8.14733634,2630.3,2630.2,10.03999224]
[1750063600357,0.1896,2630.3,2630.2,10.03999224]
[1750063600517,0.23712499,2630.3,2630.2,10.03999224]
[1750063605241,0.23712499,2630.3,2630.2,6.238]
[1750063605443,6.54078303,2630.3,2630.2,6.238]
[1750063605646,6.54078303,2630.3,2630.1,0.02]
[1750063605860,7.19486133,2630.3,2630.2,6.238]
[1750063606232,7.98756133,2630.3,2630.2,6.238]
[1750063606546,7.98756133,2630.3,2630.1,0.02]
[1750063606748,7.79796133,2630.3,2630.2,6.238]
[1750063607573,0.1896,2630.2,2630.1,6.258]
[1750063607779,15.17052267,2630.2,2630.1,0.02]
[1750063607960,11.36853043,2630.2,2630.1,0.02]
[1750063608363,0.1896,2630.2,2630.1,3.8221368]
[1750063613569,10.0,2630.9,2630.3,0.8074]
[1750063613795,6.30365804,2631.0,2630.8,3.80111236]
[1750063613990,10.04751505,2630.9,2630.8,3.80111236]
[1750063614197,10.0,2630.9,2630.8,3.80111236]
[1750063619092,0.1896,2630.8,2630.5,3.80152842]
[1750063619419,0.1896,2630.8,2630.4,0.1896]
[1750063619420,10.0,2630.6,2630.4,6.237]
[1750063619620,0.1896,2630.4,2630.3,3.80183883]
[1750063619841,0.1896,2630.4,2630.3,10.03883883]
[1750063620335,0.1896,2630.4,2630.3,10.03884769]
[1750063620660,10.1896,2630.4,2630.3,6.237]
[1750063620957,12.22381939,2630.4,2630.3,6.237]
[1750063621645,12.22381939,2630.4,2630.2,3.80196555]
[1750063621846,16.35118157,2630.3,2630.2,3.80196555]
[1750063622072,16.30365804,2630.3,2630.2,10.03896555]
[1750063624415,16.30365804,2630.3,2630.2,3.80196555]
[1750063624618,18.13744578,2630.3,2630.2,10.03896555]
[1750063625976,10.0,2630.3,2630.2,10.03896555]
[1750063627287,10.03789168,2631.0,2630.6,3.80131015]
[1750063627288,6.30365804,2631.0,2630.6,3.80131015]
[1750063627484,16.30365804,2630.8,2630.7,6.237]
[1750063628356,16.30365804,2630.8,2630.7,10.03826962]
[1750063633361,16.30365804,2630.8,2630.7,6.237]
[1750063633612,17.93402384,2630.8,2630.7,6.237]
[1750063634301,17.93402384,2630.8,2630.7,10.03826962]
[1750063634512,0.811,2631.1,2631.0,3.80083618]
[1750063634672,6.351168,2631.5,2631.1,3.80057617]
[1750063635003,0.1896,2631.1,2631.0,3.80074462]
[1750063635696,0.1896,2631.1,2631.0,10.03674462]
[1750063639864,10.7702,2631.6,2631.5,3.800114]
[1750063640100,10.0,2631.6,2631.5,10.036114]
[1750063640865,10.1896,2631.6,2631.5,10.036114]
[1750063644708,0.1896,2631.6,2631.5,10.036114]
[1750063646303,0.1896,2631.6,2631.5,10.034114]
[1750063650166,2.97307049,2631.8,2631.6,3.7999696]
[1750063650367,0.1896,2631.7,2631.6,3.7999696]
[1750063650599,0.1896,2631.7,2631.6,10.0339696]
[1750063652920,0.1896,2631.7,2631.6,10.8221696]
[1750063653415,2.97307049,2631.8,2631.7,3.7998252]
[1750063653619,2.97307049,2631.8,2631.7,5.66099397]
[1750063654125,0.1896,2632.0,2631.9,3.79953645]
[1750063654304,0.1896,2632.0,2631.9,10.03253645]
[1750063657194,0.1896,2632.0,2631.9,10.03153645]
[1750063659229,10.23709209,2632.0,2631.4,0.8179]
[1750063659401,10.23709209,2632.0,2631.4,3.80025841]
[1750063659402,6.30365804,2631.5,2631.4,3.80025841]
[1750063659734,6.30365804,2631.5,2631.2,1.624]
[1750063660026,6.30365804,2631.3,2631.2,1.624]
[1750063660407,6.30365804,2631.3,2631.2,7.856]
[1750063660939,6.35116568,2631.3,2631.2,7.856]
[1750063661105,6.30365804,2631.3,2631.2,7.856]
[1750063661742,6.35116567,2631.3,2631.2,7.856]
[1750063662235,6.30365804,2631.3,2631.2,7.856]
[1750063662440,0.1896,2631.2,2631.1,3.80068307]
[1750063662595,0.1896,2631.2,2631.1,10.03268307]
[1750063662996,0.1896,2631.2,2631.0,3.80078437]
[1750063663211,0.1896,2631.2,2631.1,10.03269172]
[1750063664513,0.1896,2631.2,2630.9,3.80084078]
[1750063664514,0.2371085,2631.2,2630.9,3.80084078]
[1750063664807,6.30365804,2631.1,2631.0,6.232]
[1750063665019,0.1896,2631.0,2630.9,3.80084078]
[1750063665329,0.1896,2631.0,2630.9,10.03284078]
[1750063665796,10.0,2631.5,2630.9,8.95386633]
[1750063665797,6.30365804,2631.5,2630.9,8.95386633]
[1750063665992,0.1896,2631.3,2631.2,3.80041814]
[1750063666207,0.1896,2631.3,2631.2,10.03241814]
[1750063666430,16.30365804,2631.8,2631.4,3.80025841]
[1750063666621,1.75806885,2631.7,2631.5,10.03210069]
[1750063667133,6.30365804,2631.6,2631.5,6.232]
[1750063667646,6.35116022,2631.6,2631.5,6.232]
[1750063668716,16.35116022,2631.6,2631.5,6.232]
[1750063668916,0.1896,2631.5,2631.4,6.232]
[1750063669126,6.54076104,2631.5,2631.4,6.232]
[1750063670044,0.1896,2631.5,2631.4,10.03225841]
[1750063670212,0.1896,2631.5,2631.4,6.232]
[1750063674157,0.23710292,2631.5,2631.4,6.232]
[1750063674319,6.54076096,2631.5,2631.4,6.232]
[1750063678154,6.49325804,2631.5,2631.4,6.232]
[1750063678362,0.1896,2631.5,2631.4,10.03225841]
[1750063679757,0.1896,2631.5,2631.4,10.83205841]
[1750063680516,0.1896,2631.5,2631.4,12.29530389]
[1750063680723,0.1896,2631.8,2631.7,3.79976226]
[1750063680923,0.1896,2631.8,2631.7,10.03076226]
[1750063682826,0.1896,2631.8,2631.7,6.231]
[1750063684258,0.1896,2631.8,2631.7,10.0308252]
[1750063684435,0.1896,2631.8,2631.7,10.8457252]
[1750063684635,10.0,2632.0,2631.9,3.79953645]
[1750063684883,10.1896,2632.0,2631.9,10.03053645]
[1750063685231,0.1896,2632.0,2631.9,10.03053645]
[1750063686227,0.04749224,2632.2,2632.0,3.79928861]
[1750063686426,0.1896,2632.1,2632.0,3.79928861]
[1750063686628,0.1896,2632.1,2632.0,10.02928861]
[1750063689129,6.49325804,2632.1,2631.9,3.79946328]
[1750063689367,6.30365804,2632.1,2632.0,6.23]
[1750063689568,6.35115083,2632.1,2632.0,6.23]
[1750063689753,6.30365804,2632.1,2632.0,10.02939209]
[1750063690338,6.30365804,2632.1,2632.0,6.23]
[1750063691470,8.11656968,2632.1,2631.9,3.7995237]
[1750063691677,0.1896,2632.0,2631.8,3.79961252]
[1750063691826,0.1896,2632.0,2631.9,10.02953645]
[1750063693351,0.1896,2632.0,2631.7,5.42279309]
[1750063693352,0.23709321,2632.0,2631.7,5.42273553]
[1750063693553,6.49325804,2631.8,2631.7,5.4228252]
[1750063693755,6.49325804,2631.8,2631.7,10.0288252]
[1750063694067,6.49325804,2631.8,2631.6,3.79989738]
[1750063694287,6.95773317,2631.8,2631.7,6.229]
[1750063694926,6.30365804,2631.9,2631.7,10.0288252]
[1750063695877,0.1896,2631.8,2631.7,10.0288252]
[1750063698393,4.00115282,2632.1,2631.9,3.79942246]
[1750063698544,4.00115282,2632.1,2631.9,10.02842246]
[1750063699182,3.95365804,2632.1,2631.9,10.02842246]
[1750063700065,0.04749423,2632.0,2631.9,10.02842246]
[1750063701286,0.04749423,2632.0,2631.9,6.229]
[1750063701883,4.00115227,2632.1,2631.9,10.02853645]
[1750063702962,3.95365804,2632.1,2631.9,10.02853645]
[1750063703982,13.95365804,2632.1,2632.0,3.79939209]
[1750063704663,10.1896,2632.1,2632.0,3.79939209]
[1750063705895,16.49325804,2632.1,2631.9,10.02844895]
[1750063706106,0.1896,2632.1,2631.9,7.611808]
[1750063706276,1.69181184,2632.8,2632.0,0.7817]
[1750063706598,0.1896,2632.4,2632.3,3.79895908]
[1750063706795,0.1896,2632.4,2632.3,10.02695908]
[1750063707097,10.0,2632.3,2631.6,0.7817]
[1750063707298,6.30365804,2631.7,2631.6,4.5816696]
[1750063707497,6.49325804,2631.8,2631.7,10.0278252]
[1750063709388,0.1896,2631.8,2631.7,10.0278252]
[1750063710070,0.95810866,2632.1,2632.0,3.79939209]
[1750063710271,10.0,2632.1,2632.0,3.79939209]
[1750063710495,10.91061184,2632.1,2632.0,3.79939209]
[1750063711893,0.1896,2632.0,2631.9,10.02747179]
[1750063713186,6.49325804,2632.0,2631.9,10.02747179]
[1750063713400,7.40386988,2632.0,2631.9,10.02747179]
[1750063713605,6.49325804,2632.0,2631.9,10.02747179]
[1750063717335,0.1896,2632.0,2631.9,10.02747179]
[1750063720508,6.49325804,2632.0,2631.9,10.02647179]
[1750063721513,0.1896,2632.0,2631.9,10.02647179]
[1750063722104,0.9117481,2632.2,2632.1,3.79924774]
[1750063722460,1.1013481,2632.2,2632.1,10.02624774]
[1750063723028,0.1896,2632.2,2632.1,10.02624774]
[1750063731457,6.49325804,2632.2,2632.1,10.02624774]
[1750063732854,7.25475804,2632.2,2631.5,4.60207485]
[1750063733011,6.30365804,2632.0,2631.9,3.79946212]
[1750063733213,6.30365804,2632.0,2631.9,10.02546212]
[1750063734668,0.1896,2631.9,2631.8,3.79960898]
[1750063735015,0.1896,2631.9,2631.8,10.02560898]
[1750063736175,0.1896,2631.9,2631.8,6.226]
[1750063736475,0.1896,2631.9,2631.8,10.02568082]
[1750063737179,0.1896,2631.9,2631.8,3.79968082]
[1750063737376,0.1896,2631.9,2631.8,10.02568082]
[1750063745895,0.91168424,2632.1,2632.0,3.79939209]
[1750063746096,0.95917299,2632.5,2632.1,3.79913797]
[1750063746393,0.95917299,2632.5,2632.2,10.02409421]
[1750063746394,0.91168424,2632.4,2632.2,10.02409421]
[1750063746774,7.21534228,2632.4,2632.2,10.02409421]
[1750063747171,0.95917299,2632.5,2632.4,3.79881476]
[1750063747378,0.04748875,2632.5,2632.4,3.79881476]
[1750063747598,0.04748875,2632.5,2632.4,10.02381476]
[1750063747802,7.26282785,2632.6,2632.4,10.02381476]
[1750063748758,6.35114361,2632.6,2632.4,10.02381476]
[1750063749164,10.04748557,2632.6,2632.5,3.79867046]
[1750063749426,0.91168424,2632.7,2632.6,3.79852617]
[1750063749563,0.02,2632.9,2632.7,3.79832254]
[1750063749763,0.02,2632.9,2632.8,6.224]
[1750063750498,0.02,2632.9,2632.4,5.41870574]
[1750063750499,0.7911,2632.8,2632.4,5.41870574]
[1750063750802,6.30365804,2632.6,2632.5,6.224]
[1750063750976,6.30365804,2632.6,2632.3,3.79890251]
[1750063751171,6.30365804,2632.4,2632.2,1.62]
[1750063751401,6.30365804,2632.4,2632.3,10.02295908]
[1750063751600,10.88315084,2632.4,2631.7,2.3978]
[1750063751798,6.30365804,2632.0,2631.9,3.79953645]
[1750063752003,6.30365804,2632.0,2631.9,10.02353645]
[1750063752173,6.30365804,2632.0,2631.6,3.79984202]
[1750063752378,6.30365804,2631.8,2631.7,10.0238252]
[1750063752902,6.30365804,2631.8,2631.2,4.60793291]
[1750063753085,6.30365804,2631.6,2631.5,3.80009068]
[1750063754187,6.30365804,2631.6,2631.4,3.80019042]
[1750063754594,6.30365804,2631.6,2631.5,3.800114]
[1750063755403,6.30365804,2631.6,2631.4,10.02425422]
[1750063756007,6.30365804,2631.6,2631.4,6.224]
[1750063756208,0.1896,2631.4,2631.2,3.80053268]
[1750063756406,6.49325804,2631.4,2631.1,3.80061529]
[1750063756611,0.7522,2631.5,2631.3,6.224]
[1750063757878,6.30365804,2631.4,2631.3,6.224]
[1750063758083,6.30365804,2631.4,2631.3,10.02440284]
[1750063758310,10.0,2631.6,2631.3,10.02440284]
[1750063758517,0.90943857,2631.9,2631.7,3.79981137]
[1750063758728,0.04749779,2631.9,2631.7,3.79981137]
[1750063758873,0.1896,2631.7,2631.6,10.02390538]
[1750063759075,0.23709874,2631.7,2631.4,3.80016961]
[1750063759393,0.86169874,2631.7,2631.6,6.224]
[1750063760279,0.8142,2631.7,2631.6,6.224]
[1750063760599,7.11785804,2631.7,2631.6,6.224]
[1750063762408,6.30365804,2631.7,2631.6,6.224]
[1750063762708,0.04750156,2631.8,2631.6,10.0239696]
[1750063762914,6.30365804,2631.7,2631.6,6.224]
[1750063764315,6.30365804,2631.7,2631.5,3.80004461]
[1750063764515,0.1896,2631.6,2631.5,10.02404461]
[1750063765024,0.23710243,2631.6,2631.5,6.224]
[1750063765491,0.23710243,2631.6,2631.3,3.80029949]
[1750063765688,0.04750243,2631.6,2631.4,10.02424155]
[1750063766091,0.04750243,2631.6,2631.5,3.800114]
[1750063766297,6.30365804,2631.7,2631.5,3.800114]
[1750063766718,0.90934717,2632.0,2631.4,6.224]
[1750063766926,0.1896,2631.7,2631.5,1.83043568]
[1750063767122,0.1896,2631.7,2631.6,3.7999696]
[1750063768328,0.1896,2631.7,2631.6,10.0239696]
[1750063769942,6.49325804,2631.7,2631.6,6.224]
[1750063770231,7.24935804,2631.7,2631.6,6.224]
[1750063770391,8.40650899,2631.7,2631.3,3.80035431]
[1750063770597,0.1896,2631.4,2631.3,10.02435431]
[1750063771353,0.1896,2631.4,2631.3,6.223]
[1750063772301,10.1896,2631.4,2631.0,3.80078219]
[1750063772510,0.1896,2631.1,2630.9,6.21110831]
[1750063772738,0.1896,2631.1,2631.0,10.02483618]
[1750063773804,0.1896,2631.1,2631.0,6.224]
[1750063774943,0.1896,2631.1,2631.0,3.80083618]
[1750063775099,0.1896,2631.1,2631.0,6.224]
[1750063778048,6.49325804,2631.1,2630.8,3.80111169]
[1750063778244,6.30365804,2630.9,2630.7,10.953]
[1750063778415,6.30365804,2630.9,2630.8,6.224]
[1750063778956,6.30365804,2630.9,2630.7,10.953]
[1750063779122,6.30365804,2630.9,2630.8,6.224]
[1750063779322,6.30365804,2631.0,2630.8,6.224]
[1750063779528,6.30365804,2631.1,2630.8,6.224]
[1750063779851,16.30365804,2631.1,2630.8,6.224]
[1750063780068,10.0,2631.0,2630.8,6.224]
[1750063780535,6.30365804,2631.1,2630.8,10.02512454]
[1750063780737,10.0,2631.0,2630.9,3.80098065]
[1750063780939,3.80037812,2631.4,2630.9,3.80098065]
[1750063780940,10.0,2631.5,2630.9,2.89859807]
[1750063781254,0.04751019,2631.4,2631.2,3.80050768]
[1750063781556,10.91001468,2631.5,2631.2,10.02350768]
[1750063781742,0.04750848,2631.4,2631.2,6.223]
[1750063782254,0.04750848,2631.4,2631.2,10.0235258]
[1750063782825,0.04750848,2631.4,2631.2,6.223]
[1750063783256,6.35116652,2631.4,2631.2,6.223]
[1750063783948,6.35116652,2631.4,2631.3,3.80040284]
[1750063784151,10.0,2631.5,2631.3,3.80040284]
[1750063784355,0.1896,2631.3,2631.2,10.02349122]
[1750063785520,10.1896,2631.3,2631.2,10.02349122]
[1750063787467,0.1896,2631.3,2631.2,10.02349122]
[1750063788471,0.1896,2631.3,2631.2,11.4059082]
[1750063788674,0.1896,2631.3,2631.2,12.2092082]
[1750063789569,10.1896,2631.3,2631.2,6.223]
[1750063789770,10.1896,2631.3,2631.0,3.8006931]
[1750063790103,0.1896,2631.0,2630.8,5.42000949]
[1750063790257,0.1896,2631.0,2630.9,10.02398065]
[1750063791053,0.1896,2631.0,2630.7,15.51338028]
[1750063791241,0.1896,2630.8,2630.7,10.953]
[1750063791453,0.1896,2630.8,2630.7,17.176]
[1750063792361,0.1896,2630.8,2630.7,20.97726962]
[1750063792856,0.1896,2630.8,2630.7,23.70014052]
[1750063793250,7.21417475,2631.3,2631.0,3.80076631]
[1750063793448,7.26168437,2631.3,2631.0,10.02376631]
[1750063793651,7.26168437,2631.3,2631.0,6.223]
[1750063793851,6.30365804,2631.1,2631.0,6.223]
[1750063796493,0.1896,2631.0,2630.9,3.80090591]
[1750063796686,0.1896,2631.0,2630.9,10.02390591]
[1750063798002,11.01180964,2631.0,2630.7,10.953]
[1750063798308,10.7747,2631.0,2630.8,6.223]
[1750063798592,6.30365804,2630.9,2630.8,6.223]
[1750063798954,12.23224608,2631.0,2630.9,3.80098065]
[1750063798955,10.0,2631.0,2630.9,3.80098065]
[1750063799183,10.0,2631.5,2631.0,3.80074728]
[1750063799383,10.91109209,2631.5,2631.1,10.02369172]
[1750063800007,10.0,2631.3,2631.1,10.02369172]
[1750063800190,0.1896,2631.2,2631.1,10.02369172]
[1750063804082,0.1896,2631.2,2631.0,3.80073459]
[1750063804299,10.0,2631.3,2631.1,10.02369172]
[1750063805180,10.0,2631.3,2631.1,6.223]
[1750063805548,10.0,2631.3,2631.1,10.02366496]
[1750063808226,10.0,2631.3,2631.1,6.223]
[1750063808610,16.30365804,2631.2,2631.1,6.223]
[1750063809617,16.30365804,2631.2,2631.1,10.02369172]
[1750063810541,16.30365804,2631.2,2631.1,6.223]
[1750063810720,10.0,2631.1,2630.9,11.64088192]
[1750063810917,10.0,2631.1,2630.3,0.799]
[1750063810918,10.0,2630.9,2630.3,0.799]
[1750063811125,10.0,2630.9,2630.1,1.06284182]
[1750063811126,6.30365804,2630.4,2630.1,7.28548341]
[1750063811323,10.0475211,2630.7,2630.2,6.222]
[1750063811521,10.0,2630.7,2630.5,3.80148503]
[1750063811723,10.0,2630.7,2630.5,10.02348503]
[1750063812221,10.0,2630.7,2630.1,7.2855595]
[1750063812418,10.0,2630.7,2630.6,3.80141412]
[1750063812624,10.0,2630.9,2630.6,3.80141412]
[1750063812824,10.91141158,2630.9,2630.6,3.80141412]
[1750063813655,0.91141158,2630.9,2630.5,7.0246]
[1750063813810,0.91120609,2631.3,2630.7,6.222]
[1750063814014,7.11226565,2631.5,2631.0,3.80072215]
[1750063814209,7.11226565,2631.5,2631.1,10.02269172]
[1750063814411,7.97596413,2631.7,2631.4,3.80024003]
[1750063814638,10.0,2631.7,2631.5,3.80010211]
[1750063815167,0.91120609,2631.7,2631.5,3.80010259]
[1750063815442,10.0,2631.7,2631.5,3.80010259]
[1750063816658,10.0,2631.5,2631.4,10.02219862]
[1750063817936,10.0,2631.5,2631.4,6.222]
[1750063819168,10.0,2631.5,2631.3,3.80034319]
[1750063819335,10.0,2631.5,2631.4,6.221]
[1750063819973,10.0,2631.5,2631.4,10.02125841]
[1750063821940,10.0,2631.5,2631.4,6.221]
[1750063822439,10.0,2631.5,2631.4,10.02125841]
[1750063825732,6.30365804,2631.8,2631.5,3.80010691]
[1750063825937,0.95770527,2631.9,2631.7,3.79973643]
[1750063826137,10.04749867,2632.0,2631.8,6.221]
[1750063826346,13.00070048,2632.0,2631.8,6.221]
[1750063826747,10.91020528,2632.0,2631.8,6.221]
[1750063827073,10.91020528,2632.0,2631.9,3.79953645]
[1750063827074,10.0,2632.0,2631.9,3.79953645]
[1750063827282,0.1896,2632.0,2631.9,3.79953645]
[1750063830476,10.0,2632.1,2632.0,3.79939209]
[1750063830477,10.1896,2632.1,2632.0,3.79939209]
[1750063833284,10.1896,2632.1,2632.0,6.219]
[1750063833445,11.8389258,2632.1,2631.7,3.79973548]
[1750063833644,6.30365804,2631.8,2631.6,10.01895324]
[1750063833901,10.1896,2631.7,2631.6,6.219]
[1750063834262,10.1896,2631.7,2631.4,3.8001886]
[1750063834610,6.30365804,2631.6,2631.4,3.80024638]
[1750063834751,6.30365804,2631.6,2631.5,6.219]
[1750063835788,0.1896,2631.5,2631.2,5.41647835]
[1750063835948,6.49325804,2631.4,2631.3,6.219]
[1750063836145,6.49325804,2631.4,2631.0,0.1896]
[1750063836349,6.49325804,2631.4,2631.1,6.219]
[1750063836576,0.04750563,2631.3,2631.1,6.219]
[1750063836789,6.30365804,2631.2,2630.9,5.41692568]
[1750063836964,6.49325804,2631.0,2630.8,5.41707357]
[1750063837159,6.30365804,2631.0,2630.9,6.219]
[1750063837472,0.1896,2630.9,2630.8,5.41707357]
[1750063837865,0.1896,2630.9,2630.8,11.63607357]
[1750063838166,0.1896,2630.9,2630.8,13.26107661]
[1750063839579,0.1896,2630.9,2630.8,5.42607661]
[1750063839879,0.1896,2630.9,2630.8,13.26107661]
[1750063841154,0.1896,2630.9,2630.8,11.63607357]
[1750063841354,0.1896,2630.9,2630.8,5.41707357]
[1750063841589,0.1896,2630.9,2630.8,11.63607357]
[1750063842608,0.1896,2630.9,2630.8,5.41707357]
[1750063842909,0.1896,2630.9,2630.8,3.80107357]
[1750063843117,0.1896,2630.9,2630.8,10.02007357]
[1750063843627,4.60005389,2631.5,2631.2,3.80046713]
[1750063843628,0.7999,2631.5,2631.2,3.80046713]
[1750063843908,17.10116524,2631.7,2631.3,6.219]
[1750063844199,0.1896,2631.4,2631.3,10.01931807]
[1750063845857,10.7549,2631.9,2631.4,3.80012124]
[1750063846095,10.7549,2631.9,2631.6,3.79989036]
[1750063846096,0.04750023,2631.8,2631.6,3.79989036]
[1750063846259,0.1896,2631.6,2631.5,10.01905792]
[1750063847600,10.0,2632.1,2631.8,3.79962133]
[1750063847797,10.0,2632.1,2631.9,6.219]
[1750063848101,0.1896,2632.0,2631.9,10.01845305]
[1750063848295,0.1896,2632.0,2631.9,6.219]
[1750063850307,0.8281,2632.3,2631.9,6.219]
[1750063850465,0.1896,2632.2,2631.9,10.01850493]
[1750063850978,0.1896,2632.2,2632.0,3.79936079]
[1750063851207,0.1896,2632.2,2631.9,10.01848791]
[1750063852719,0.1896,2632.2,2632.0,3.79930049]
[1750063853004,0.1896,2632.2,2632.1,6.219]
[1750063854939,16.49325804,2632.2,2632.1,6.219]
[1750063857336,0.1896,2632.2,2632.1,11.10024014]
[1750063857841,0.1896,2632.2,2632.1,7.3009924]
[1750063857996,0.1896,2632.2,2632.1,6.219]
[1750063858436,6.49325804,2632.2,2632.0,6.218]
[1750063859314,0.1896,2632.2,2632.0,10.01737154]
[1750063859836,0.1896,2632.2,2632.0,6.218]
[1750063860276,0.1896,2632.2,2632.0,10.01737492]
[1750063860543,0.1896,2632.2,2632.0,10.01736059]
[1750063861954,6.30365804,2632.1,2632.0,6.218]
[1750063862250,6.30365804,2632.1,2631.8,3.79959146]
[1750063862452,0.1896,2632.2,2631.5,0.9494]
[1750063862453,6.30365804,2631.9,2631.5,0.9494]
[1750063862656,6.49325804,2631.7,2631.4,3.80020994]
[1750063862842,6.49325804,2631.5,2631.4,10.01720994]
[1750063863241,6.49325804,2631.5,2631.3,3.80031411]
[1750063863557,6.49325804,2631.5,2631.4,6.217]
[1750063863851,6.49325804,2631.5,2631.4,10.01725841]
[1750063865041,0.1896,2631.5,2631.4,10.01725841]
[1750063865216,0.1896,2631.5,2631.4,12.16122334]
[1750063865617,6.30365804,2632.1,2631.9,3.79953645]
[1750063866119,10.0,2632.0,2631.9,3.79953645]
[1750063870237,10.0,2632.2,2632.0,3.79939209]
[1750063870546,10.0,2632.2,2632.1,3.7991748]
[1750063871339,10.0,2632.2,2631.8,0.8121]
[1750063871340,0.1896,2632.1,2632.0,3.79934931]
[1750063871553,16.30365804,2632.1,2632.0,3.79934931]
[1750063874357,16.30365804,2632.3,2632.2,3.79897655]
[1750063874521,16.30365804,2632.3,2632.0,3.79934345]
[1750063874522,17.21436103,2632.3,2632.1,3.79917696]
[1750063874724,10.1896,2632.2,2632.1,3.79917696]
[1750063875038,10.1896,2632.2,2632.0,3.79932403]
[1750063875428,6.30365804,2632.1,2632.0,3.79932403]
[1750063875842,10.1896,2632.2,2632.1,3.79924774]
[1750063877365,0.1896,2632.2,2632.1,3.79924774]
[1750063879828,0.1896,2632.2,2632.0,3.79933153]
[1750063880123,0.1896,2632.2,2632.1,3.79924774]
[1750063881264,0.1896,2632.2,2632.1,5.18260191]
[1750063881967,0.91115912,2632.6,2632.4,3.79881468]
[1750063882125,0.1896,2632.5,2632.2,0.0189146]
[1750063882326,0.1896,2632.5,2632.4,3.79881476]
[1750063882762,0.1896,2632.5,2632.4,4.5604836]
[1750063883754,6.49325804,2632.5,2632.1,2.15825417]
[1750063883959,6.49325804,2632.5,2632.3,3.79894488]
[1750063884172,6.30365804,2632.5,2632.3,3.79894488]
[1750063886665,6.30365804,2632.5,2632.2,10.01401521]
[1750063886666,0.1896,2632.3,2632.2,10.01401521]
[1750063888851,10.0,2632.6,2632.5,3.79867046]
[1750063889134,0.1896,2632.6,2632.5,3.79867046]
[1750063890747,0.02,2632.9,2632.5,7.0207]
[1750063890945,0.1896,2632.8,2632.7,3.79838188]
[1750063891660,0.1896,2632.8,2632.6,3.79845782]
[1750063892297,0.1896,2632.8,2632.7,3.79838188]
[1750063892796,0.1896,2632.8,2632.6,3.79844856]
[1750063893166,0.1896,2632.8,2632.6,3.79844848]
[1750063893897,0.1896,2632.8,2632.5,10.0135813]
[1750063894085,0.1896,2632.8,2632.1,1.614]
[1750063894086,0.1896,2632.5,2632.1,1.614]
[1750063894261,6.30365804,2632.4,2632.3,6.214]
[1750063895196,0.1896,2632.3,2632.1,3.79916847]
[1750063895495,6.49325804,2632.2,2632.0,3.79931335]
[1750063895681,6.49325804,2632.2,2632.1,3.79924774]
[1750063896303,6.49325804,2632.2,2632.1,3.17859935]
[1750063896599,6.49325804,2632.2,2632.0,3.79932484]
[1750063896796,6.49325804,2632.2,2632.1,3.79924774]
[1750063897098,0.1896,2632.2,2632.1,3.79924774]
[1750063898266,0.1896,2632.2,2632.0,3.79931578]
[1750063898461,0.1896,2632.2,2632.1,3.79924774]
[1750063898794,0.1896,2632.2,2632.1,4.55024774]
[1750063899095,0.1896,2632.4,2632.3,3.79893896]
[1750063903569,0.1896,2632.4,2632.2,3.79905243]
[1750063903769,0.1896,2632.4,2632.1,10.01318101]
[1750063905003,0.1896,2632.4,2632.1,6.214]
[1750063905204,6.3511434,2632.3,2632.0,6.214]
[1750063905370,0.1896,2632.1,2632.0,6.214]
[1750063905706,0.1896,2632.1,2632.0,10.01339209]
[1750063906106,17.12995804,2632.6,2632.2,3.79897779]
[1750063906405,0.1896,2632.3,2632.2,3.79897779]
[1750063906979,0.1896,2632.3,2632.1,4.58047113]
[1750063907210,0.1896,2632.3,2632.1,3.79917113]
[1750063908110,0.1896,2632.3,2632.0,3.79929762]
[1750063908408,6.30365804,2632.4,2632.0,10.01329762]
[1750063908606,0.1896,2632.1,2632.0,10.01329762]
[1750063908911,0.1896,2632.1,2631.9,10.01344102]
[1750063909580,0.1896,2632.1,2632.0,3.79939209]
[1750063910074,0.1896,2632.1,2632.0,4.57669209]
[1750063910271,10.0,2632.5,2632.2,3.79899436]
[1750063910478,0.1896,2632.3,2632.2,3.79899436]
[1750063918723,0.1896,2632.3,2632.2,10.01199436]
[1750063920523,0.1896,2632.3,2632.2,3.79899436]
[1750063920817,0.1896,2632.3,2632.2,10.01199436]
[1750063921004,0.2370854,2632.3,2631.9,1.613]
[1750063921185,7.17514344,2632.4,2632.1,3.79916716]
[1750063921385,7.97902989,2632.4,2632.1,3.79916716]
[1750063922605,1.67537185,2632.4,2632.1,3.79916716]
[1750063922923,17.97902989,2632.4,2632.1,3.79916716]
[1750063923128,17.93154449,2632.4,2632.1,3.79916716]
[1750063924403,17.93154449,2632.4,2632.2,3.79910204]
[1750063924598,17.93154449,2632.4,2632.1,3.79918648]
[1750063925198,10.0,2632.5,2632.3,3.79895908]
[1750063925385,0.91187927,2632.6,2632.4,3.79881476]
[1750063925998,7.26302254,2632.7,2632.4,3.79881476]
[1750063927391,10.0,2632.6,2632.4,3.79881476]
[1750063927702,10.91187927,2632.6,2632.4,3.79881476]
[1750063928303,0.1896,2632.4,2632.2,10.01098281]
[1750063928511,0.1896,2632.4,2632.2,6.212]
[1750063928716,0.1896,2632.4,2632.3,3.79895908]
[1750063929336,0.1896,2632.4,2632.3,4.55725908]
[1750063932316,0.1896,2632.4,2632.3,4.57617042]
[1750063932520,0.1896,2632.4,2632.3,6.03489582]
[1750063935843,7.2827532,2632.9,2632.7,3.79837886]
[1750063936044,6.37113966,2632.9,2632.7,3.79837886]
[1750063937547,0.06748162,2632.9,2632.7,3.79837886]
[1750063937736,6.37113966,2632.9,2632.7,3.79837886]
[1750063938253,0.02,2632.9,2632.8,3.79823761]
[1750063938408,0.02,2632.9,2632.7,3.79831556]
[1750063938612,10.02,2632.9,2632.8,3.79823761]
[1750063939209,0.1896,2632.8,2632.7,3.79830433]
[1750063948462,0.1896,2632.8,2632.7,6.15988522]
[1750063950970,0.02,2632.9,2632.8,3.79823761]
[1750063951130,0.02,2632.9,2632.8,10.00823761]
[1750063953273,0.02,2632.9,2632.8,10.19783761]